[Event "*** Titled Tuesday 3|2 Blitz"]
[Site "Chess.com"]
[Date "2015.12.01"]
[Round "9"]
[White "NguyenDucHoa"]
[Black "chessdude"]
[Result "1/2-1/2"]
[WhiteElo "2354"]
[BlackElo "2282"]
[TimeControl "180+2"]
[EndTime "13:02:22 PST"]
[Termination "Game drawn - insufficient material"]

1. e4 {[%clk 0:03:01.9]} 1... e5 {[%clk 0:02:59.6]} 2. Nf3 {[%clk 0:03:01.6]}
2... Nc6 {[%clk 0:03:00.6]} 3. d4 {[%clk 0:03:02.2]} 3... exd4 {[%clk
0:03:01.6]} 4. Nxd4 {[%clk 0:03:04.1]} 4... Nf6 {[%clk 0:03:02.7]} 5. Nxc6
{[%clk 0:03:02.4]} 5... bxc6 {[%clk 0:03:03.6]} 6. Qe2 {[%clk 0:03:03.6]} 6...
a5 {[%clk 0:03:02.6]} 7. c4 {[%clk 0:02:53.2]} 7... Bb4+ {[%clk 0:02:59.5]} 8.
Bd2 {[%clk 0:02:45.6]} 8... O-O {[%clk 0:02:58.8]} 9. Nc3 {[%clk 0:02:46.4]}
9... Re8 {[%clk 0:02:53.7]} 10. f3 {[%clk 0:02:46.4]} 10... d5 {[%clk
0:02:54.4]} 11. O-O-O {[%clk 0:02:41.3]} 11... Ba6 {[%clk 0:02:55.2]} 12. Qf2
{[%clk 0:02:35.6]} 12... Rb8 {[%clk 0:02:48.6]} 13. Na4 {[%clk 0:02:22.1]} 13...
Qe7 {[%clk 0:02:44.1]} 14. cxd5 {[%clk 0:01:41.4]} 14... Bxf1 {[%clk 0:02:41]}
15. Rhxf1 {[%clk 0:01:41.1]} 15... cxd5 {[%clk 0:02:40.4]} 16. Bxb4 {[%clk
0:01:33.7]} 16... Rxb4 {[%clk 0:02:30.3]} 17. Nc3 {[%clk 0:01:19.1]} 17... dxe4
{[%clk 0:02:14]} 18. Rfe1 {[%clk 0:01:13.5]} 18... e3 {[%clk 0:02:11.9]} 19. Qc2
{[%clk 0:01:11.8]} 19... Rb6 {[%clk 0:01:59.3]} 20. Rd3 {[%clk 0:01:05.5]} 20...
Re6 {[%clk 0:01:59.9]} 21. Qa4 {[%clk 0:01:03.7]} 21... Qb4 {[%clk 0:01:51.4]}
22. Re2 {[%clk 0:01:00.5]} 22... c6 {[%clk 0:01:39.3]} 23. Rd4 {[%clk
0:00:57.6]} 23... Qxa4 {[%clk 0:01:39.1]} 24. Rxa4 {[%clk 0:00:58.1]} 24... Nd5
{[%clk 0:01:39.4]} 25. g3 {[%clk 0:00:37.6]} 25... Nxc3 {[%clk 0:01:16.2]} 26.
bxc3 {[%clk 0:00:36.8]} 26... Re5 {[%clk 0:01:17.5]} 27. Rc4 {[%clk 0:00:32]}
27... R8e6 {[%clk 0:01:18.2]} 28. Kd1 {[%clk 0:00:30.4]} 28... Rd5+ {[%clk
0:01:18.3]} 29. Ke1 {[%clk 0:00:31.4]} 29... f5 {[%clk 0:01:15.4]} 30. f4 {[%clk
0:00:20.2]} 30... Rb5 {[%clk 0:01:11.6]} 31. Kf1 {[%clk 0:00:20.8]} 31... Rb1+
{[%clk 0:01:10.6]} 32. Kg2 {[%clk 0:00:21.7]} 32... Rd1 {[%clk 0:01:03.8]} 33.
Rc5 {[%clk 0:00:22]} 33... Rd3 {[%clk 0:00:58.2]} 34. Kf3 {[%clk 0:00:20.9]}
34... g6 {[%clk 0:00:55.9]} 35. a4 {[%clk 0:00:13.5]} 35... Kg7 {[%clk
0:00:52.9]} 36. c4 {[%clk 0:00:14.2]} 36... Ra3 {[%clk 0:00:36.5]} 37. Rxa5
{[%clk 0:00:13.9]} 37... Kf6 {[%clk 0:00:36.8]} 38. h4 {[%clk 0:00:11.9]} 38...
h6 {[%clk 0:00:37.6]} 39. Ra8 {[%clk 0:00:10.5]} 39... g5 {[%clk 0:00:35.8]} 40.
fxg5+ {[%clk 0:00:07.2]} 40... hxg5 {[%clk 0:00:36.4]} 41. hxg5+ {[%clk
0:00:08.1]} 41... Kxg5 {[%clk 0:00:36.9]} 42. a5 {[%clk 0:00:07.6]} 42... c5
{[%clk 0:00:37.7]} 43. Rg8+ {[%clk 0:00:03.9]} 43... Kf6 {[%clk 0:00:36.8]} 44.
Rf8+ {[%clk 0:00:05.3]} 44... Kg6 {[%clk 0:00:36.6]} 45. Ra8 {[%clk 0:00:05.4]}
45... Kg5 {[%clk 0:00:24.4]} 46. Ra7 {[%clk 0:00:05.2]} 46... Kg6 {[%clk
0:00:24.8]} 47. Ra8 {[%clk 0:00:06.3]} 47... Kg5 {[%clk 0:00:23.5]} 48. Rg8+
{[%clk 0:00:06.4]} 48... Kf6 {[%clk 0:00:23.9]} 49. Rc8 {[%clk 0:00:07.1]} 49...
Rxa5 {[%clk 0:00:15.5]} 50. Rxe3 {[%clk 0:00:07.8]} 50... Rxe3+ {[%clk
0:00:15.9]} 51. Kxe3 {[%clk 0:00:09.7]} 51... Kg5 {[%clk 0:00:12.3]} 52. Rg8+
{[%clk 0:00:07.4]} 52... Kf6 {[%clk 0:00:12.8]} 53. Rc8 {[%clk 0:00:07.4]} 53...
Kg5 {[%clk 0:00:13.6]} 54. Kf3 {[%clk 0:00:05.7]} 54... Ra3+ {[%clk 0:00:14.6]}
55. Kg2 {[%clk 0:00:06.8]} 55... Ra5 {[%clk 0:00:13.2]} 56. Kh3 {[%clk
0:00:06.5]} 56... Kf6 {[%clk 0:00:14.3]} 57. Kh4 {[%clk 0:00:07]} 57... Ke5
{[%clk 0:00:07.8]} 58. Rd8 {[%clk 0:00:08.2]} 58... Ke4 {[%clk 0:00:05]} 59. Kg5
{[%clk 0:00:08.1]} 59... Ra4 {[%clk 0:00:05.5]} 60. Re8+ {[%clk 0:00:08.1]}
60... Kd3 {[%clk 0:00:06.2]} 61. Kxf5 {[%clk 0:00:08.3]} 61... Rxc4 {[%clk
0:00:07.6]} 62. g4 {[%clk 0:00:09.7]} 62... Rc1 {[%clk 0:00:08.7]} 63. g5 {[%clk
0:00:10.8]} 63... Rf1+ {[%clk 0:00:09.5]} 64. Kg4 {[%clk 0:00:09.2]} 64... Rg1+
{[%clk 0:00:09.6]} 65. Kf5 {[%clk 0:00:09.4]} 65... c4 {[%clk 0:00:10.8]} 66.
Rd8+ {[%clk 0:00:10.7]} 66... Ke2 {[%clk 0:00:09.7]} 67. Rc8 {[%clk 0:00:11.6]}
67... Kd3 {[%clk 0:00:10.4]} 68. g6 {[%clk 0:00:12.5]} 68... c3 {[%clk
0:00:11.3]} 69. Rd8+ {[%clk 0:00:12]} 69... Ke2 {[%clk 0:00:11]} 70. Re8+ {[%clk
0:00:12.7]} 70... Kd2 {[%clk 0:00:11]} 71. Rd8+ {[%clk 0:00:14.3]} 71... Ke2
{[%clk 0:00:12.2]} 72. Rc8 {[%clk 0:00:14.5]} 72... Kd2 {[%clk 0:00:13.1]} 73.
Kf6 {[%clk 0:00:15]} 73... Rxg6+ {[%clk 0:00:12.7]} 74. Kxg6 {[%clk 0:00:15.6]}
74... c2 {[%clk 0:00:14]} 75. Rxc2+ {[%clk 0:00:15.5]} 75... Kxc2 {[%clk
0:00:15.1]} 1/2-1/2

[Event "*** Titled Tuesday 3|2 Blitz"]
[Site "Chess.com"]
[Date "2015.12.01"]
[Round "9"]
[White "Gabrielian_Artur"]
[Black "SlovenskiZmaj"]
[Result "1/2-1/2"]
[WhiteElo "2490"]
[BlackElo "2318"]
[TimeControl "180+2"]
[EndTime "13:04:23 PST"]
[Termination "Game drawn - insufficient material"]

1. Nf3 {[%clk 0:03:00.8]} 1... f5 {[%clk 0:03:00]} 2. d4 {[%clk 0:02:58.3]} 2...
d6 {[%clk 0:02:59.3]} 3. Nc3 {[%clk 0:02:57.5]} 3... Nf6 {[%clk 0:02:59.9]} 4.
Bg5 {[%clk 0:02:58.6]} 4... Nbd7 {[%clk 0:03:00]} 5. e3 {[%clk 0:02:59.5]} 5...
g6 {[%clk 0:02:58.8]} 6. h4 {[%clk 0:03:00.3]} 6... h6 {[%clk 0:02:48.3]} 7. Bf4
{[%clk 0:02:59.8]} 7... Bg7 {[%clk 0:02:46.8]} 8. Bc4 {[%clk 0:02:59.9]} 8... c6
{[%clk 0:02:42.5]} 9. Bb3 {[%clk 0:02:59.4]} 9... a5 {[%clk 0:02:35.4]} 10. a4
{[%clk 0:02:59.9]} 10... Nb6 {[%clk 0:02:19.8]} 11. Qe2 {[%clk 0:02:53.6]} 11...
Ne4 {[%clk 0:02:03.2]} 12. Nxe4 {[%clk 0:02:54.2]} 12... fxe4 {[%clk 0:02:05.1]}
13. Nd2 {[%clk 0:02:55.4]} 13... d5 {[%clk 0:02:06.6]} 14. c4 {[%clk 0:02:52.9]}
14... Bf5 {[%clk 0:01:42]} 15. g4 {[%clk 0:02:53]} 15... Be6 {[%clk 0:01:37.6]}
16. c5 {[%clk 0:02:53.7]} 16... Nd7 {[%clk 0:01:25.4]} 17. Nxe4 {[%clk
0:02:54.5]} 17... Bf7 {[%clk 0:01:26.5]} 18. Nd2 {[%clk 0:02:40.2]} 18... e5
{[%clk 0:01:26.1]} 19. Bg3 {[%clk 0:02:41.4]} 19... O-O {[%clk 0:01:22.2]} 20.
dxe5 {[%clk 0:02:28.7]} 20... Nxc5 {[%clk 0:01:17.1]} 21. Bc2 {[%clk 0:02:28.2]}
21... d4 {[%clk 0:01:05.6]} 22. exd4 {[%clk 0:02:29.2]} 22... Qxd4 {[%clk
0:01:07.4]} 23. O-O {[%clk 0:02:30.1]} 23... Rae8 {[%clk 0:01:09]} 24. Rfe1
{[%clk 0:02:17.1]} 24... Nd7 {[%clk 0:00:53.1]} 25. Rad1 {[%clk 0:02:01]} 25...
Nxe5 {[%clk 0:00:50.1]} 26. Ne4 {[%clk 0:02:01.9]} 26... Qxb2 {[%clk 0:00:47.3]}
27. Nd6 {[%clk 0:02:02.6]} 27... Nf3+ {[%clk 0:00:33.9]} 28. Qxf3 {[%clk
0:02:02.7]} 28... Rxe1+ {[%clk 0:00:34.2]} 29. Rxe1 {[%clk 0:02:03.6]} 29...
Qxc2 {[%clk 0:00:35.5]} 30. Nxf7 {[%clk 0:01:55]} 30... Rxf7 {[%clk 0:00:37.4]}
31. Re8+ {[%clk 0:01:55.7]} 31... Bf8 {[%clk 0:00:38.8]} 32. Qe3 {[%clk
0:01:37.9]} 32... Qd1+ {[%clk 0:00:39.2]} 33. Kh2 {[%clk 0:01:37.2]} 33... Qxg4
{[%clk 0:00:40.5]} 34. Qxh6 {[%clk 0:01:32.4]} 34... Qf5 {[%clk 0:00:37.5]} 35.
Qe3 {[%clk 0:01:28.4]} 35... b5 {[%clk 0:00:19.7]} 36. Re5 {[%clk 0:01:28]}
36... Qf3 {[%clk 0:00:19.9]} 37. Qg5 {[%clk 0:01:23.1]} 37... Kh7 {[%clk
0:00:14.4]} 38. axb5 {[%clk 0:01:21]} 38... Bh6 {[%clk 0:00:10.8]} 39. Qd8
{[%clk 0:01:13.5]} 39... Bf4 {[%clk 0:00:12.3]} 40. Qd4 {[%clk 0:00:22.5]} 40...
Bxg3+ {[%clk 0:00:11.2]} 41. fxg3 {[%clk 0:00:23.3]} 41... Qf1 {[%clk
0:00:11.8]} 42. bxc6 {[%clk 0:00:03.8]} 42... Rf2+ {[%clk 0:00:11.2]} 43. Qxf2
{[%clk 0:00:05.1]} 43... Qxf2+ {[%clk 0:00:13.1]} 44. Kh3 {[%clk 0:00:06.8]}
44... Qf1+ {[%clk 0:00:14.3]} 45. Kh2 {[%clk 0:00:07.6]} 45... Qc1 {[%clk
0:00:15.3]} 46. Re7+ {[%clk 0:00:05.3]} 46... Kh6 {[%clk 0:00:16]} 47. Ra7
{[%clk 0:00:05.7]} 47... Qc5 {[%clk 0:00:15.1]} 48. c7 {[%clk 0:00:06.3]} 48...
a4 {[%clk 0:00:12.9]} 49. Kh3 {[%clk 0:00:04.7]} 49... a3 {[%clk 0:00:11.5]} 50.
Rxa3 {[%clk 0:00:05.2]} 50... Qxc7 {[%clk 0:00:11.3]} 51. Rf3 {[%clk 0:00:06.2]}
51... Qd7+ {[%clk 0:00:12.7]} 52. Kh2 {[%clk 0:00:07.6]} 52... Qd2+ {[%clk
0:00:13.5]} 53. Kh3 {[%clk 0:00:09]} 53... Qd7+ {[%clk 0:00:14.6]} 54. Kh2
{[%clk 0:00:10.3]} 54... Qg4 {[%clk 0:00:15.9]} 55. Rf4 {[%clk 0:00:11.4]} 55...
Qe2+ {[%clk 0:00:17.4]} 56. Kh3 {[%clk 0:00:12.9]} 56... g5 {[%clk 0:00:14.4]}
57. hxg5+ {[%clk 0:00:14.2]} 57... Kxg5 {[%clk 0:00:16]} 58. Rh4 {[%clk
0:00:14.9]} 58... Qf1+ {[%clk 0:00:15]} 59. Kh2 {[%clk 0:00:15.8]} 59... Qf2+
{[%clk 0:00:16.5]} 60. Kh3 {[%clk 0:00:17.4]} 60... Qg1 {[%clk 0:00:12.3]} 61.
Rg4+ {[%clk 0:00:17.5]} 61... Kf5 {[%clk 0:00:13.6]} 62. Rf4+ {[%clk 0:00:19]}
62... Ke5 {[%clk 0:00:15]} 63. Kh4 {[%clk 0:00:18.1]} 63... Qh2+ {[%clk
0:00:16]} 64. Kg4 {[%clk 0:00:19.6]} 64... Qh1 {[%clk 0:00:15.7]} 65. Rb4 {[%clk
0:00:15.6]} 65... Qd1+ {[%clk 0:00:14.1]} 66. Kh4 {[%clk 0:00:16.8]} 66... Qd8+
{[%clk 0:00:12.9]} 67. Kh3 {[%clk 0:00:17.7]} 67... Qd7+ {[%clk 0:00:09]} 68. g4
{[%clk 0:00:08.2]} 68... Qh7+ {[%clk 0:00:06.2]} 69. Kg3 {[%clk 0:00:08.7]}
69... Qd3+ {[%clk 0:00:07.3]} 70. Kh4 {[%clk 0:00:10.1]} 70... Qd8+ {[%clk
0:00:08.5]} 71. Kh3 {[%clk 0:00:10.2]} 71... Qd7 {[%clk 0:00:03.9]} 72. Rb3
{[%clk 0:00:07.2]} 72... Qh7+ {[%clk 0:00:04.2]} 73. Kg3 {[%clk 0:00:07.8]}
73... Qh1 {[%clk 0:00:03.1]} 74. Rf3 {[%clk 0:00:08.3]} 74... Qg1+ {[%clk
0:00:03.7]} 75. Kh4 {[%clk 0:00:07.9]} 75... Qh2+ {[%clk 0:00:05.3]} 76. Kg5
{[%clk 0:00:09.1]} 76... Qg2 {[%clk 0:00:06.2]} 77. Rf5+ {[%clk 0:00:10]} 77...
Ke6 {[%clk 0:00:07.8]} 78. Kh5 {[%clk 0:00:10.7]} 78... Qh3+ {[%clk 0:00:09.1]}
79. Kg5 {[%clk 0:00:12.2]} 79... Qg3 {[%clk 0:00:10.3]} 80. Kh5 {[%clk
0:00:13.6]} 80... Qg2 {[%clk 0:00:10.4]} 81. Kh4 {[%clk 0:00:14.6]} 81... Qh2+
{[%clk 0:00:11]} 82. Kg5 {[%clk 0:00:16.1]} 82... Qd2+ {[%clk 0:00:12.5]} 83.
Kh4 {[%clk 0:00:16.6]} 83... Qe3 {[%clk 0:00:13.6]} 84. Kh5 {[%clk 0:00:16.9]}
84... Ke7 {[%clk 0:00:13]} 85. Kh4 {[%clk 0:00:17.6]} 85... Qh6+ {[%clk
0:00:12.7]} 86. Kg3 {[%clk 0:00:18.8]} 86... Ke6 {[%clk 0:00:13.3]} 87. Kf3
{[%clk 0:00:18.6]} 87... Qh3+ {[%clk 0:00:13.8]} 88. Kf4 {[%clk 0:00:20.2]}
88... Qh4 {[%clk 0:00:15]} 89. Kf3 {[%clk 0:00:21]} 89... Qe1 {[%clk 0:00:14]}
90. Kf4 {[%clk 0:00:20.8]} 90... Qd2+ {[%clk 0:00:14.7]} 91. Kg3 {[%clk
0:00:22]} 91... Qe3+ {[%clk 0:00:16]} 92. Kh4 {[%clk 0:00:23.2]} 92... Ke7
{[%clk 0:00:16.7]} 93. Kh5 {[%clk 0:00:23.7]} 93... Ke6 {[%clk 0:00:16.2]} 94.
Kh4 {[%clk 0:00:24.9]} 94... Qh6+ {[%clk 0:00:16.5]} 95. Kg3 {[%clk 0:00:26.3]}
95... Ke7 {[%clk 0:00:16.8]} 96. Kf3 {[%clk 0:00:26.9]} 96... Qh4 {[%clk
0:00:16.2]} 97. Kf4 {[%clk 0:00:27.8]} 97... Ke6 {[%clk 0:00:17.4]} 98. Kf3
{[%clk 0:00:29]} 98... Qh6 {[%clk 0:00:17]} 99. Kg3 {[%clk 0:00:30]} 99... Qd2
{[%clk 0:00:16.3]} 100. Kh3 {[%clk 0:00:30.7]} 100... Qe2 {[%clk 0:00:15.4]}
101. Kg3 {[%clk 0:00:31.3]} 101... Qe4 {[%clk 0:00:16.4]} 102. Kh3 {[%clk
0:00:32.1]} 102... Qh1+ {[%clk 0:00:15.3]} 103. Kg3 {[%clk 0:00:33.4]} 103...
Qg1+ {[%clk 0:00:16.2]} 104. Kh3 {[%clk 0:00:34.9]} 104... Qe3+ {[%clk
0:00:16.4]} 105. Kh4 {[%clk 0:00:36]} 105... Qh6+ {[%clk 0:00:16.9]} 106. Kg3
{[%clk 0:00:37.3]} 106... Qg6 {[%clk 0:00:17.1]} 107. Kh4 {[%clk 0:00:38.1]}
107... Qxf5 {[%clk 0:00:18.2]} 108. gxf5+ {[%clk 0:00:37.2]} 108... Kxf5 {[%clk
0:00:20.1]} 1/2-1/2